[Event "Early-Titled-Tuesday-Blitz-November-28-2023"]
[Site "Chess.com"]
[Date "2023.11.28"]
[Round "9"]
[White "Flaccidmoves"]
[Black "LeoLV10"]
[Result "1/2-1/2"]
[WhiteElo "2409"]
[BlackElo "2526"]
[TimeControl "180+1"]
[EndTime "9:53:24 PST"]
[Termination "Game drawn - insufficient material"]

1. Nf3 {[%clk 0:03:00.9]} 1... c5 {[%clk 0:02:58]} 2. g3 {[%clk 0:02:58.7]} 2...
g6 {[%clk 0:02:55.5]} 3. Bg2 {[%clk 0:02:59.1]} 3... Bg7 {[%clk 0:02:56.2]} 4.
O-O {[%clk 0:02:59.7]} 4... Nc6 {[%clk 0:02:56.8]} 5. c4 {[%clk 0:02:59.2]} 5...
d6 {[%clk 0:02:50.9]} 6. Nc3 {[%clk 0:02:55.7]} 6... e5 {[%clk 0:02:49]} 7. d3
{[%clk 0:02:54.3]} 7... Be6 {[%clk 0:02:46.3]} 8. Ne1 {[%clk 0:02:53.6]} 8...
Nge7 {[%clk 0:02:46.5]} 9. Nc2 {[%clk 0:02:52.7]} 9... d5 {[%clk 0:02:46.6]} 10.
cxd5 {[%clk 0:02:51.8]} 10... Nxd5 {[%clk 0:02:47.3]} 11. Nxd5 {[%clk
0:02:34.4]} 11... Bxd5 {[%clk 0:02:45.6]} 12. Bxd5 {[%clk 0:02:24.9]} 12... Qxd5
{[%clk 0:02:45.3]} 13. Ne3 {[%clk 0:02:11.4]} 13... Qd7 {[%clk 0:02:44.7]} 14.
Bd2 {[%clk 0:02:07.7]} 14... O-O {[%clk 0:02:43.3]} 15. Bc3 {[%clk 0:02:02.3]}
15... Rad8 {[%clk 0:02:39.6]} 16. Qb3 {[%clk 0:01:58.4]} 16... Kh8 {[%clk
0:02:37.6]} 17. Rac1 {[%clk 0:01:55.3]} 17... f5 {[%clk 0:02:34.7]} 18. a4
{[%clk 0:01:36.4]} 18... b6 {[%clk 0:02:33.7]} 19. Nc4 {[%clk 0:01:28.8]} 19...
f4 {[%clk 0:02:25.5]} 20. Qb5 {[%clk 0:01:17.8]} 20... h6 {[%clk 0:02:09]} 21.
a5 {[%clk 0:01:13.1]} 21... Nd4 {[%clk 0:02:04.4]} 22. Qxd7 {[%clk 0:01:08.5]}
22... Nxe2+ {[%clk 0:02:00.6]} 23. Kh1 {[%clk 0:01:09]} 23... Rxd7 {[%clk
0:02:00.8]} 24. Nxe5 {[%clk 0:01:00.6]} 24... Rd6 {[%clk 0:01:47.5]} 25. Nc4
{[%clk 0:00:55.8]} 25... Rxd3 {[%clk 0:01:47.6]} 26. Bxg7+ {[%clk 0:00:46.8]}
26... Kxg7 {[%clk 0:01:48.5]} 27. Rce1 {[%clk 0:00:36.7]} 27... f3 {[%clk
0:01:39.4]} 28. Ne5 {[%clk 0:00:35.9]} 28... Rd2 {[%clk 0:01:34.9]} 29. axb6
{[%clk 0:00:34.7]} 29... axb6 {[%clk 0:01:33.7]} 30. Nc4 {[%clk 0:00:35.2]}
30... Rc2 {[%clk 0:01:31.9]} 31. Nxb6 {[%clk 0:00:35.3]} 31... Rxb2 {[%clk
0:01:30.6]} 32. Nc4 {[%clk 0:00:30.8]} 32... Rc2 {[%clk 0:01:30.7]} 33. Ne5
{[%clk 0:00:27.8]} 33... Rf5 {[%clk 0:01:27]} 34. Nd3 {[%clk 0:00:22.8]} 34...
h5 {[%clk 0:01:24.2]} 35. Ra1 {[%clk 0:00:22]} 35... Rd2 {[%clk 0:01:21.6]} 36.
Ra7+ {[%clk 0:00:17.2]} 36... Kh6 {[%clk 0:01:20.1]} 37. Nf4 {[%clk 0:00:16.9]}
37... Nxf4 {[%clk 0:01:17.4]} 38. gxf4 {[%clk 0:00:17.8]} 38... Rxf4 {[%clk
0:01:17.6]} 39. Rc7 {[%clk 0:00:18.5]} 39... Rc2 {[%clk 0:01:14.4]} 40. h3
{[%clk 0:00:17.8]} 40... Rf5 {[%clk 0:01:05.2]} 41. Kh2 {[%clk 0:00:17.2]} 41...
Rg5 {[%clk 0:01:03.3]} 42. Rf7 {[%clk 0:00:15.3]} 42... Rg2+ {[%clk 0:01:01.8]}
43. Kh1 {[%clk 0:00:16]} 43... Rgxf2 {[%clk 0:01:02.2]} 44. Rxf2 {[%clk
0:00:16.3]} 44... Rxf2 {[%clk 0:01:01]} 45. Kg1 {[%clk 0:00:15.9]} 45... Rg2+
{[%clk 0:00:59.7]} 46. Kh1 {[%clk 0:00:16.3]} 46... Rd2 {[%clk 0:00:52.9]} 47.
Rxf3 {[%clk 0:00:15.9]} 47... c4 {[%clk 0:00:53.3]} 48. h4 {[%clk 0:00:16.1]}
48... Rd3 {[%clk 0:00:52.2]} 49. Rf4 {[%clk 0:00:16.3]} 49... c3 {[%clk
0:00:51.5]} 50. Rc4 {[%clk 0:00:17]} 50... c2 {[%clk 0:00:46.1]} 51. Rxc2 {[%clk
0:00:16.5]} 51... Rh3+ {[%clk 0:00:46.7]} 52. Kg2 {[%clk 0:00:17.1]} 52... Rxh4
{[%clk 0:00:46.7]} 53. Rc8 {[%clk 0:00:17.7]} 53... Rg4+ {[%clk 0:00:46.6]} 54.
Kh3 {[%clk 0:00:18.1]} 54... Ra4 {[%clk 0:00:45.2]} 55. Rb8 {[%clk 0:00:18.4]}
55... Ra3+ {[%clk 0:00:43.8]} 56. Kh2 {[%clk 0:00:18.1]} 56... Rf3 {[%clk
0:00:43.6]} 57. Ra8 {[%clk 0:00:18.1]} 57... Kg5 {[%clk 0:00:43]} 58. Kg2 {[%clk
0:00:18.3]} 58... Rf5 {[%clk 0:00:42.9]} 59. Kg3 {[%clk 0:00:17.8]} 59... Rc5
{[%clk 0:00:43.2]} 60. Rb8 {[%clk 0:00:17.8]} 60... Rc3+ {[%clk 0:00:42.8]} 61.
Kg2 {[%clk 0:00:18.1]} 61... h4 {[%clk 0:00:41.4]} 62. Rb5+ {[%clk 0:00:18.3]}
62... Kg4 {[%clk 0:00:41.8]} 63. Rb4+ {[%clk 0:00:18.3]} 63... Kh5 {[%clk
0:00:42.4]} 64. Kh2 {[%clk 0:00:18.7]} 64... g5 {[%clk 0:00:42.7]} 65. Rb8
{[%clk 0:00:19.1]} 65... Rc4 {[%clk 0:00:41.6]} 66. Ra8 {[%clk 0:00:19.1]} 66...
Kg4 {[%clk 0:00:41.8]} 67. Kg1 {[%clk 0:00:18.2]} 67... Rc3 {[%clk 0:00:38.9]}
68. Ra5 {[%clk 0:00:16.2]} 68... h3 {[%clk 0:00:32.7]} 69. Kh1 {[%clk
0:00:15.6]} 69... Kh4 {[%clk 0:00:32.1]} 70. Ra8 {[%clk 0:00:14.5]} 70... Kg3
{[%clk 0:00:30.2]} 71. Ra1 {[%clk 0:00:14.8]} 71... g4 {[%clk 0:00:30.5]} 72.
Rb1 {[%clk 0:00:14.6]} 72... Rc2 {[%clk 0:00:30.1]} 73. Ra1 {[%clk 0:00:11]}
73... Rc3 {[%clk 0:00:24.9]} 74. Rb1 {[%clk 0:00:10.7]} 74... Re3 {[%clk
0:00:22.5]} 75. Ra1 {[%clk 0:00:10.6]} 75... Kf3 {[%clk 0:00:22.7]} 76. Rf1+
{[%clk 0:00:09.9]} 76... Kg3 {[%clk 0:00:22.4]} 77. Ra1 {[%clk 0:00:10.1]} 77...
Kf2 {[%clk 0:00:22.5]} 78. Ra2+ {[%clk 0:00:08.9]} 78... Re2 {[%clk 0:00:21.8]}
79. Ra8 {[%clk 0:00:08.9]} 79... Re1+ {[%clk 0:00:15.5]} 80. Kh2 {[%clk
0:00:08.8]} 80... g3+ {[%clk 0:00:15.9]} 81. Kxh3 {[%clk 0:00:09.4]} 81... Rh1+
{[%clk 0:00:16.3]} 82. Kg4 {[%clk 0:00:09.1]} 82... g2 {[%clk 0:00:13.3]} 83.
Ra2+ {[%clk 0:00:09.6]} 83... Kg1 {[%clk 0:00:13.6]} 84. Kg3 {[%clk 0:00:08.9]}
84... Kf1 {[%clk 0:00:13.1]} 85. Ra1+ {[%clk 0:00:08.9]} 85... Ke2 {[%clk
0:00:12.3]} 86. Ra2+ {[%clk 0:00:09.4]} 86... Kf1 {[%clk 0:00:12.5]} 87. Rxg2
{[%clk 0:00:10]} 87... Rg1 {[%clk 0:00:12.3]} 88. Rxg1+ {[%clk 0:00:10.1]} 88...
Kxg1 {[%clk 0:00:13.2]} 1/2-1/2

[Event "Early-Titled-Tuesday-Blitz-November-28-2023"]
[Site "Chess.com"]
[Date "2023.11.28"]
[Round "9"]
[White "InitiatingASC"]
[Black "Truequitos"]
[Result "1-0"]
[WhiteElo "2360"]
[BlackElo "2488"]
[TimeControl "180+1"]
[EndTime "9:53:24 PST"]
[Termination "InitiatingASC won on time"]

1. d4 {[%clk 0:02:59.9]} 1... d5 {[%clk 0:02:57.7]} 2. c4 {[%clk 0:02:59.8]}
2... Nc6 {[%clk 0:02:57.4]} 3. Nc3 {[%clk 0:02:58.4]} 3... Nf6 {[%clk
0:02:57.1]} 4. cxd5 {[%clk 0:02:56.8]} 4... Nxd5 {[%clk 0:02:58]} 5. e4 {[%clk
0:02:57.2]} 5... Nxc3 {[%clk 0:02:58.6]} 6. bxc3 {[%clk 0:02:57.6]} 6... e5
{[%clk 0:02:59.5]} 7. Nf3 {[%clk 0:02:57.3]} 7... exd4 {[%clk 0:02:56.9]} 8.
cxd4 {[%clk 0:02:57.1]} 8... Bb4+ {[%clk 0:02:57.2]} 9. Bd2 {[%clk 0:02:56.8]}
9... O-O {[%clk 0:02:52]} 10. d5 {[%clk 0:02:48.9]} 10... Bxd2+ {[%clk
0:02:51.2]} 11. Qxd2 {[%clk 0:02:48.1]} 11... Ne7 {[%clk 0:02:51.3]} 12. Bc4
{[%clk 0:02:31.4]} 12... Re8 {[%clk 0:02:50.6]} 13. O-O {[%clk 0:02:30.7]} 13...
Ng6 {[%clk 0:02:50.8]} 14. h3 {[%clk 0:02:26.1]} 14... Ne5 {[%clk 0:02:50.3]}
15. Nxe5 {[%clk 0:02:22.6]} 15... Rxe5 {[%clk 0:02:51.2]} 16. Rae1 {[%clk
0:02:19.7]} 16... Qd6 {[%clk 0:02:49.4]} 17. Qd4 {[%clk 0:02:09.9]} 17... Re8
{[%clk 0:02:34.6]} 18. e5 {[%clk 0:02:03]} 18... Qb6 {[%clk 0:02:35.1]} 19. Qf4
{[%clk 0:01:55.6]} 19... Qc5 {[%clk 0:02:23.5]} 20. e6 {[%clk 0:01:48]} 20...
fxe6 {[%clk 0:02:14.6]} 21. dxe6 {[%clk 0:01:47.7]} 21... Kh8 {[%clk 0:02:10.7]}
22. Qf7 {[%clk 0:01:42.3]} 22... Qe7 {[%clk 0:02:05.3]} 23. Qxe7 {[%clk
0:01:15.2]} 23... Rxe7 {[%clk 0:02:05.1]} 24. Rd1 {[%clk 0:01:15.6]} 24... g6
{[%clk 0:01:21.7]} 25. Rd8+ {[%clk 0:01:06.7]} 25... Kg7 {[%clk 0:01:21.7]} 26.
Rfd1 {[%clk 0:01:06.2]} 26... c6 {[%clk 0:01:16.4]} 27. R1d4 {[%clk 0:00:44.6]}
27... b5 {[%clk 0:01:14.3]} 28. Bb3 {[%clk 0:00:43]} 28... Bb7 {[%clk
0:01:09.7]} 29. R4d7 {[%clk 0:00:37.1]} 29... Kf6 {[%clk 0:00:26.8]} 30. Rxe7
{[%clk 0:00:33]} 30... Rxd8 {[%clk 0:00:25.1]} 31. Rxb7 {[%clk 0:00:32]} 31...
a5 {[%clk 0:00:24.8]} 32. Rf7+ {[%clk 0:00:20.8]} 32... Ke5 {[%clk 0:00:24.8]}
33. a3 {[%clk 0:00:19.2]} 33... a4 {[%clk 0:00:24]} 34. Ba2 {[%clk 0:00:19.2]}
34... c5 {[%clk 0:00:24.4]} 35. Rd7 {[%clk 0:00:18]} 35... Re8 {[%clk
0:00:13.9]} 36. Bd5 {[%clk 0:00:17.3]} 36... b4 {[%clk 0:00:11.8]} 37. axb4
{[%clk 0:00:17]} 37... cxb4 {[%clk 0:00:12.7]} 38. Bc4 {[%clk 0:00:13.7]} 38...
b3 {[%clk 0:00:11.7]} 39. Rb7 {[%clk 0:00:12.5]} 39... Kd4 {[%clk 0:00:11.2]}
40. Bb5 {[%clk 0:00:10]} 40... Rxe6 {[%clk 0:00:10.6]} 41. Bxa4 {[%clk
0:00:10.2]} 41... Re1+ {[%clk 0:00:10.5]} 42. Kh2 {[%clk 0:00:10]} 42... Re2
{[%clk 0:00:10.4]} 43. Kg3 {[%clk 0:00:08.1]} 43... b2 {[%clk 0:00:10.4]} 44.
Bc6 {[%clk 0:00:08]} 44... Rc2 {[%clk 0:00:10]} 45. Bf3 {[%clk 0:00:07.3]} 45...
Kc3 {[%clk 0:00:10.1]} 46. Be4 {[%clk 0:00:07.3]} 46... Rc1 {[%clk 0:00:10.3]}
47. f3 {[%clk 0:00:07.8]} 47... Re1 {[%clk 0:00:10.6]} 48. Kf4 {[%clk
0:00:07.8]} 48... h6 {[%clk 0:00:10.3]} 49. h4 {[%clk 0:00:07.9]} 49... Re2
{[%clk 0:00:09]} 50. g3 {[%clk 0:00:07.9]} 50... Rd2 {[%clk 0:00:04.9]} 51. Bxg6
{[%clk 0:00:07.9]} 51... Rd4+ {[%clk 0:00:05.5]} 52. Be4 {[%clk 0:00:08.6]}
52... Rd8 {[%clk 0:00:04.7]} 53. g4 {[%clk 0:00:08.9]} 53... Rf8+ {[%clk
0:00:05.1]} 54. Kg3 {[%clk 0:00:09.4]} 54... Rg8 {[%clk 0:00:04.5]} 55. Rb6
{[%clk 0:00:09.4]} 55... Rh8 {[%clk 0:00:03.5]} 56. h5 {[%clk 0:00:09.2]} 56...
Rd8 {[%clk 0:00:02.1]} 57. Rxh6 {[%clk 0:00:08.9]} 57... Rb8 {[%clk 0:00:02.8]}
58. Rc6+ {[%clk 0:00:09.1]} 58... Kd4 {[%clk 0:00:03]} 59. Rd6+ {[%clk
0:00:09.5]} 59... Ke5 {[%clk 0:00:03.2]} 60. Rd1 {[%clk 0:00:10]} 60... Kf6
{[%clk 0:00:02.8]} 61. Re1 {[%clk 0:00:10.4]} 61... Kg5 {[%clk 0:00:03.1]} 62.
Bb1 {[%clk 0:00:11]} 62... Kh6 {[%clk 0:00:03]} 63. f4 {[%clk 0:00:11.5]} 63...
Kg7 {[%clk 0:00:03.2]} 64. Kh4 {[%clk 0:00:12]} 64... Kh8 {[%clk 0:00:04.1]} 65.
Kg5 {[%clk 0:00:12.5]} 65... Rb5+ {[%clk 0:00:04.7]} 66. f5 {[%clk 0:00:12.4]}
66... Rb6 {[%clk 0:00:05.3]} 67. f6 {[%clk 0:00:12.7]} 67... Rb5+ {[%clk
0:00:05.4]} 68. Kg6 {[%clk 0:00:13.2]} 68... Rb8 {[%clk 0:00:05.3]} 69. g5
{[%clk 0:00:13.4]} 69... Rg8+ {[%clk 0:00:05.5]} 70. Kf5 {[%clk 0:00:13.8]}
70... Rb8 {[%clk 0:00:05.6]} 71. Re5 {[%clk 0:00:12.7]} 71... Rf8 {[%clk
0:00:05.5]} 72. g6 {[%clk 0:00:13.1]} 72... Ra8 {[%clk 0:00:03.9]} 73. f7 {[%clk
0:00:13.3]} 73... Kg7 {[%clk 0:00:03.9]} 74. Re8 {[%clk 0:00:13.5]} 74... Ra5+
{[%clk 0:00:04]} 75. Ke4 {[%clk 0:00:13.9]} 75... Ra4+ {[%clk 0:00:04]} 76. Kd3
{[%clk 0:00:14.3]} 76... Rf4 {[%clk 0:00:03.7]} 77. f8=Q+ {[%clk 0:00:13.7]}
77... Rxf8 {[%clk 0:00:03.5]} 78. Rxf8 {[%clk 0:00:14.4]} 78... Kxf8 {[%clk
0:00:04.4]} 79. h6 {[%clk 0:00:14.9]} 79... Kg8 {[%clk 0:00:04.6]} 80. Kc3
{[%clk 0:00:15.3]} 80... Kh8 {[%clk 0:00:05.5]} 81. Kxb2 {[%clk 0:00:15.8]}
81... Kg8 {[%clk 0:00:05.7]} 82. Kc3 {[%clk 0:00:16.7]} 82... Kh8 {[%clk
0:00:06.6]} 83. Kd4 {[%clk 0:00:17.6]} 1-0

[Event "Early-Titled-Tuesday-Blitz-November-28-2023"]
[Site "Chess.com"]
[Date "2023.11.28"]
[Round "10"]
[White "Zavgorodniy_Sergiy"]
[Black "DenLaz"]
[Result "0-1"]
[WhiteElo "2690"]
[BlackElo "3021"]
[TimeControl "180+1"]
[EndTime "9:57:33 PST"]
[Termination "DenLaz won by resignation"]

1. e4 {[%clk 0:03:00.9]} 1... c5 {[%clk 0:03:00.6]} 2. Nf3 {[%clk 0:03:00.4]}
2... e6 {[%clk 0:03:01.3]} 3. d3 {[%clk 0:02:59.9]} 3... Nc6 {[%clk 0:03:01.4]}
4. g3 {[%clk 0:02:59.5]} 4... g6 {[%clk 0:03:00.5]} 5. Bg5 {[%clk 0:02:58]} 5...
Qb6 {[%clk 0:02:55.7]} 6. Nbd2 {[%clk 0:02:56.6]} 6... d6 {[%clk 0:02:53.5]} 7.
Bg2 {[%clk 0:02:46.7]} 7... Bg7 {[%clk 0:02:53.1]} 8. O-O {[%clk 0:02:45.6]}
8... h6 {[%clk 0:02:52.9]} 9. Be3 {[%clk 0:02:40.6]} 9... Nge7 {[%clk
0:02:53.2]} 10. Nc4 {[%clk 0:02:32.3]} 10... Qc7 {[%clk 0:02:53.2]} 11. d4
{[%clk 0:02:32.1]} 11... cxd4 {[%clk 0:02:51.5]} 12. Nxd4 {[%clk 0:02:31.7]}
12... Nxd4 {[%clk 0:02:51.7]} 13. Bxd4 {[%clk 0:02:31.5]} 13... e5 {[%clk
0:02:52]} 14. Bc5 {[%clk 0:01:59.7]} 14... dxc5 {[%clk 0:02:46.3]} 15. Nd6+
{[%clk 0:01:58.4]} 15... Kf8 {[%clk 0:02:46.3]} 16. f4 {[%clk 0:01:57.3]} 16...
exf4 {[%clk 0:02:40.5]} 17. Kh1 {[%clk 0:01:55.1]} 17... Be6 {[%clk 0:02:34.8]}
18. Rxf4 {[%clk 0:01:46.1]} 18... Rd8 {[%clk 0:02:27.4]} 0-1

[Event "Early-Titled-Tuesday-Blitz-November-28-2023"]
[Site "Chess.com"]
[Date "2023.11.28"]
[Round "10"]
[White "FARIZA2018"]
[Black "Ron_Weasley_Chess"]
[Result "1-0"]
[WhiteElo "2539"]
[BlackElo "2418"]
[TimeControl "180+1"]
[EndTime "9:58:04 PST"]
[Termination "FARIZA2018 won by resignation"]

1. e4 {[%clk 0:03:00.9]} 1... c6 {[%clk 0:02:59.8]} 2. d4 {[%clk 0:03:01]} 2...
d5 {[%clk 0:03:00]} 3. Nc3 {[%clk 0:03:01.5]} 3... dxe4 {[%clk 0:03:00.3]} 4.
Nxe4 {[%clk 0:03:01.9]} 4... Nf6 {[%clk 0:03:01.2]} 5. Qd3 {[%clk 0:02:58.4]}
5... Nbd7 {[%clk 0:03:00]} 6. Nf3 {[%clk 0:02:58.4]} 6... Nxe4 {[%clk 0:03:00]}
7. Qxe4 {[%clk 0:02:58.8]} 7... Nf6 {[%clk 0:03:00.9]} 8. Qd3 {[%clk 0:02:59.2]}
8... g6 {[%clk 0:03:01.8]} 9. Be2 {[%clk 0:02:56.3]} 9... Bg7 {[%clk 0:03:01.4]}
10. O-O {[%clk 0:02:56.4]} 10... O-O {[%clk 0:03:00.9]} 11. c3 {[%clk
0:02:56.7]} 11... Bf5 {[%clk 0:02:56.3]} 12. Qd1 {[%clk 0:02:56.8]} 12... Qc7
{[%clk 0:02:54.9]} 13. Qb3 {[%clk 0:02:55.2]} 13... Rfd8 {[%clk 0:02:50.7]} 14.
Bc4 {[%clk 0:02:53.4]} 14... Nd5 {[%clk 0:02:48.6]} 15. Re1 {[%clk 0:02:50.6]}
15... b5 {[%clk 0:02:40.4]} 16. Bf1 {[%clk 0:02:47.7]} 16... a5 {[%clk
0:02:35.5]} 17. a4 {[%clk 0:02:47.7]} 17... bxa4 {[%clk 0:02:23.8]} 18. Qxa4
{[%clk 0:02:46.8]} 18... Rdb8 {[%clk 0:02:20]} 19. Bc4 {[%clk 0:02:44.8]} 19...
Nb6 {[%clk 0:02:17.8]} 20. Qa2 {[%clk 0:02:42.3]} 20... Nxc4 {[%clk 0:02:13.7]}
21. Qxc4 {[%clk 0:02:42.4]} 21... Qd6 {[%clk 0:01:55.8]} 22. Ne5 {[%clk
0:02:40.3]} 22... Rc8 {[%clk 0:01:48.7]} 23. Qxf7+ {[%clk 0:02:39.3]} 23... Kh8
{[%clk 0:01:47.4]} 24. Bf4 {[%clk 0:02:28.3]} 24... Be6 {[%clk 0:01:47.6]} 25.
Nxg6+ {[%clk 0:02:27.1]} 25... hxg6 {[%clk 0:01:48]} 26. Rxe6 {[%clk 0:02:27.6]}
26... Rf8 {[%clk 0:01:41.3]} 27. Qxf8+ {[%clk 0:02:16.7]} 1-0

[Event "Early-Titled-Tuesday-Blitz-November-28-2023"]
[Site "Chess.com"]
[Date "2023.11.28"]
[Round "10"]
[White "masterofpuppets2"]
[Black "Aleksandar-Topalov"]
[Result "1-0"]
[WhiteElo "2520"]
[BlackElo "2393"]
[TimeControl "180+1"]
[EndTime "9:58:25 PST"]
[Termination "masterofpuppets2 won by resignation"]

1. d4 {[%clk 0:03:00.9]} 1... Nf6 {[%clk 0:02:59.7]} 2. c4 {[%clk 0:03:00.8]}
2... c5 {[%clk 0:02:59.6]} 3. d5 {[%clk 0:03:00.3]} 3... d6 {[%clk 0:03:00.1]}
4. Nc3 {[%clk 0:03:00]} 4... g6 {[%clk 0:03:00.6]} 5. g3 {[%clk 0:02:52.6]} 5...
Bg7 {[%clk 0:03:00.5]} 6. Bg2 {[%clk 0:02:53.3]} 6... O-O {[%clk 0:03:00.7]} 7.
Nh3 {[%clk 0:02:43.5]} 7... Na6 {[%clk 0:02:57.2]} 8. O-O {[%clk 0:02:43.2]}
8... Nc7 {[%clk 0:02:57.2]} 9. Rb1 {[%clk 0:02:34.6]} 9... Rb8 {[%clk
0:02:56.8]} 10. b4 {[%clk 0:02:19.1]} 10... cxb4 {[%clk 0:02:56.1]} 11. Rxb4
{[%clk 0:02:20]} 11... Na6 {[%clk 0:02:56.4]} 12. Rb1 {[%clk 0:02:17.7]} 12...
Nc5 {[%clk 0:02:55.8]} 13. Nb5 {[%clk 0:02:18]} 13... a6 {[%clk 0:02:51.3]} 14.
Nd4 {[%clk 0:02:16.9]} 14... Bf5 {[%clk 0:02:44.6]} 15. Ra1 {[%clk 0:02:11.7]}
15... Nfe4 {[%clk 0:02:16.9]} 16. Bb2 {[%clk 0:02:07.6]} 16... Nf6 {[%clk
0:02:02.8]} 17. Qc1 {[%clk 0:01:51.7]} 17... Na4 {[%clk 0:01:58]} 18. Ba3 {[%clk
0:01:48.1]} 18... Qc8 {[%clk 0:01:53.5]} 19. Nf4 {[%clk 0:01:44.1]} 19... Nxd5
{[%clk 0:01:42.3]} 20. Nxd5 {[%clk 0:01:42.3]} 20... Bxd4 {[%clk 0:01:41.7]} 21.
Nxe7+ {[%clk 0:01:42.2]} 1-0

[Event "Early-Titled-Tuesday-Blitz-November-28-2023"]
[Site "Chess.com"]
[Date "2023.11.28"]
[Round "10"]
[White "Aygehovit1992"]
[Black "SnekkerAndersen"]
[Result "1-0"]
[WhiteElo "2732"]
[BlackElo "2547"]
[TimeControl "180+1"]
[EndTime "9:59:01 PST"]
[Termination "Aygehovit1992 won by resignation"]

1. d4 {[%clk 0:03:00.9]} 1... e6 {[%clk 0:02:32.2]} 2. c4 {[%clk 0:02:57.5]}
2... d5 {[%clk 0:02:32.1]} 3. Nc3 {[%clk 0:02:56.6]} 3... Nf6 {[%clk 0:02:32.8]}
4. Nf3 {[%clk 0:02:55.7]} 4... Be7 {[%clk 0:02:33.2]} 5. Bg5 {[%clk 0:02:54.8]}
5... O-O {[%clk 0:02:32.1]} 6. e3 {[%clk 0:02:55.2]} 6... Nbd7 {[%clk
0:02:29.2]} 7. Qc2 {[%clk 0:02:54.7]} 7... h6 {[%clk 0:02:27.1]} 8. h4 {[%clk
0:02:54.5]} 8... c5 {[%clk 0:02:26.8]} 9. O-O-O {[%clk 0:02:53.7]} 9... cxd4
{[%clk 0:02:11.8]} 10. Nxd4 {[%clk 0:02:53.7]} 10... Nb6 {[%clk 0:02:04.7]} 11.
Bxf6 {[%clk 0:02:43.4]} 11... Bxf6 {[%clk 0:02:03.4]} 12. g4 {[%clk 0:02:43.5]}
12... Bxd4 {[%clk 0:01:55.7]} 13. Rxd4 {[%clk 0:02:37]} 13... e5 {[%clk
0:01:56.2]} 14. Rd2 {[%clk 0:02:37.3]} 14... d4 {[%clk 0:01:49.1]} 15. g5 {[%clk
0:02:30.4]} 15... Be6 {[%clk 0:00:59.4]} 16. gxh6 {[%clk 0:02:25.6]} 16... Qf6
{[%clk 0:00:59.5]} 17. hxg7 {[%clk 0:02:23.1]} 17... Rfc8 {[%clk 0:00:56.6]} 18.
Ne4 {[%clk 0:02:23.3]} 18... Qxg7 {[%clk 0:00:52.9]} 19. c5 {[%clk 0:02:19.5]}
19... Nd5 {[%clk 0:00:50]} 20. exd4 {[%clk 0:02:12.6]} 20... Kh8 {[%clk
0:00:47.6]} 21. dxe5 {[%clk 0:02:09.5]} 21... Qxe5 {[%clk 0:00:48.5]} 22. Ng5
{[%clk 0:02:05.7]} 22... Rxc5 {[%clk 0:00:45.7]} 23. Qxc5 {[%clk 0:02:03.7]}
23... Rc8 {[%clk 0:00:45.9]} 24. Qxc8+ {[%clk 0:02:03.9]} 1-0

[Event "Early-Titled-Tuesday-Blitz-November-28-2023"]
[Site "Chess.com"]
[Date "2023.11.28"]
[Round "10"]
[White "Hovik_Hayrapetyan"]
[Black "Zhigalko_Sergei"]
[Result "0-1"]
[WhiteElo "2810"]
[BlackElo "2919"]
[TimeControl "180+1"]
[EndTime "9:59:06 PST"]
[Termination "Zhigalko_Sergei won by resignation"]

1. d4 {[%clk 0:03:00.9]} 1... Nf6 {[%clk 0:02:59.6]} 2. c4 {[%clk 0:03:00.6]}
2... e6 {[%clk 0:02:59.8]} 3. Nc3 {[%clk 0:03:00.8]} 3... Bb4 {[%clk 0:03:00]}
4. e3 {[%clk 0:03:00.9]} 4... O-O {[%clk 0:02:59.8]} 5. Bd3 {[%clk 0:03:01.2]}
5... d5 {[%clk 0:02:57.4]} 6. cxd5 {[%clk 0:03:02.1]} 6... exd5 {[%clk
0:02:57.4]} 7. a3 {[%clk 0:03:02.4]} 7... Bd6 {[%clk 0:02:57.1]} 8. Qc2 {[%clk
0:03:02.2]} 8... c6 {[%clk 0:02:53]} 9. Nge2 {[%clk 0:02:59.9]} 9... Re8 {[%clk
0:02:50.8]} 10. f3 {[%clk 0:02:55.4]} 10... c5 {[%clk 0:02:50.9]} 11. dxc5
{[%clk 0:02:35.8]} 11... Bxc5 {[%clk 0:02:50.9]} 12. Nb5 {[%clk 0:02:36.4]}
12... Bb6 {[%clk 0:02:39.2]} 13. Nbd4 {[%clk 0:02:35.8]} 13... Nc6 {[%clk
0:02:33.1]} 14. Nxc6 {[%clk 0:02:28.5]} 14... bxc6 {[%clk 0:02:32.3]} 15. Qxc6
{[%clk 0:02:29.4]} 15... Bd7 {[%clk 0:02:28.3]} 16. Qc3 {[%clk 0:02:25.4]} 16...
Rc8 {[%clk 0:02:25.6]} 17. Qb3 {[%clk 0:02:25.1]} 17... Rb8 {[%clk 0:02:19]} 18.
Qc3 {[%clk 0:02:17.7]} 18... d4 {[%clk 0:01:55.4]} 19. exd4 {[%clk 0:02:12.8]}
19... Nd5 {[%clk 0:01:54.9]} 20. Qc2 {[%clk 0:02:12.5]} 20... Qh4+ {[%clk
0:01:48.5]} 21. Kf1 {[%clk 0:02:01.3]} 21... Bxd4 {[%clk 0:01:47.7]} 22. g3
{[%clk 0:01:27.5]} 22... Qh3+ {[%clk 0:01:28.3]} 23. Ke1 {[%clk 0:01:27.7]}
23... Qg2 {[%clk 0:01:25.8]} 0-1

[Event "Early-Titled-Tuesday-Blitz-November-28-2023"]
[Site "Chess.com"]
[Date "2023.11.28"]
[Round "10"]
[White "Kostukov_Alex"]
[Black "kai_nov"]
[Result "1-0"]
[WhiteElo "2398"]
[BlackElo "2232"]
[TimeControl "180+1"]
[EndTime "9:59:06 PST"]
[Termination "Kostukov_Alex won by resignation"]

1. g3 {[%clk 0:02:34.7]} 1... e5 {[%clk 0:02:59.4]} 2. Bg2 {[%clk 0:02:34.4]}
2... d5 {[%clk 0:02:59.8]} 3. c4 {[%clk 0:02:34]} 3... Nf6 {[%clk 0:02:56]} 4.
cxd5 {[%clk 0:02:27]} 4... Nxd5 {[%clk 0:02:55.4]} 5. Nf3 {[%clk 0:02:27.5]}
5... Nc6 {[%clk 0:02:54.2]} 6. O-O {[%clk 0:02:25]} 6... Be7 {[%clk 0:02:51]} 7.
d4 {[%clk 0:02:14.1]} 7... e4 {[%clk 0:02:40]} 8. Ne5 {[%clk 0:02:13.3]} 8...
Nxe5 {[%clk 0:02:33.6]} 9. dxe5 {[%clk 0:02:14.2]} 9... Bf5 {[%clk 0:02:31.5]}
10. Bxe4 {[%clk 0:02:13.6]} 10... Bxe4 {[%clk 0:02:27.5]} 11. Qa4+ {[%clk
0:02:13.6]} 11... c6 {[%clk 0:02:26.8]} 12. Qxe4 {[%clk 0:02:14.5]} 12... O-O
{[%clk 0:02:26.7]} 13. Rd1 {[%clk 0:02:09]} 13... Qb6 {[%clk 0:02:24.5]} 14. Nd2
{[%clk 0:02:02.1]} 14... Rad8 {[%clk 0:02:19.7]} 15. Nc4 {[%clk 0:01:47.3]}
15... Nc3 {[%clk 0:01:59.7]} 16. Rxd8 {[%clk 0:01:44.5]} 16... Rxd8 {[%clk
0:01:23.4]} 17. bxc3 {[%clk 0:01:23.4]} 17... Rd1+ {[%clk 0:01:21.7]} 18. Kg2
{[%clk 0:01:23.1]} 18... Qc5 {[%clk 0:01:21.6]} 19. Be3 {[%clk 0:01:18.3]} 1-0